bitfinex/quotes_BTCUSD_20220103
["timestamp","ask_amount","ask_price","bid_price","bid_amount"]
[1641248891485,0.8525607,46274.0,46268.0,0.45279497]
[1641248891486,0.60897193,46274.0,46268.0,0.45279497]
[1641248891783,0.8525607,46278.0,46273.0,0.46331274]
[1641248891784,0.7525607,46278.0,46273.0,0.46331274]
[1641248891984,0.7525607,46278.0,46277.0,0.15121965]
[1641248892385,0.05532,46290.0,46278.0,0.003125]
[1641248892584,0.05532,46290.0,46289.0,0.10122826]
[1641248892784,0.05532,46290.0,46289.0,0.09891184]
[1641248892983,0.05532,46290.0,46289.0,0.14891184]
[1641248893183,1.13984948,46306.0,46289.0,0.14891184]
[1641248893384,1.13984948,46306.0,46305.0,0.00126123]
[1641248893585,1.14847372,46306.0,46305.0,0.00126123]
[1641248893787,1.07987372,46306.0,46305.0,0.00126123]
[1641248893987,0.00862424,46306.0,46305.0,0.00126123]
[1641248894223,0.0004,46310.0,46305.0,0.00126123]
[1641248894427,0.0004,46310.0,46305.0,0.09887533]
[1641248897727,0.0004,46310.0,46306.0,0.351498]
[1641248897980,0.053991,46321.0,46309.0,0.05399194]
[1641248898179,0.053991,46321.0,46306.0,0.1]
[1641248898180,0.0436,46320.0,46306.0,0.1]
[1641248898380,0.0436,46320.0,46319.0,0.0976141]
[1641248900383,0.053991,46321.0,46319.0,0.0976141]
[1641248900584,0.053986,46324.0,46319.0,0.0976141]
[1641248900786,0.053986,46324.0,46322.0,0.0976141]
[1641248901183,0.00013905,46323.0,46322.0,0.0976141]
[1641248901819,0.00013905,46323.0,46316.0,0.00123257]
[1641248902019,0.00013905,46323.0,46315.0,0.0976141]
[1641248902020,0.053995,46318.0,46315.0,0.0976141]
[1641248902219,0.048995,46318.0,46315.0,0.0976141]
[1641248902618,0.04182591,46318.0,46315.0,0.0976141]
[1641248903019,0.09582491,46318.0,46315.0,0.0976141]
[1641248903220,0.108006,46317.0,46315.0,0.0976141]
[1641248903619,0.108006,46317.0,46310.0,0.00127423]
[1641248903620,0.34164103,46316.0,46310.0,0.00127423]
[1641248903820,0.0436,46320.0,46302.0,0.00127832]
[1641248904019,0.0999,46319.0,46302.0,0.00127832]
[1641248904222,0.0436,46320.0,46302.0,0.00127832]
[1641248904419,0.054002,46316.0,46302.0,0.00127832]
[1641248905019,0.054002,46312.0,46302.0,0.00127832]
[1641248905481,0.054002,46312.0,46303.0,0.05400253]
[1641248906083,0.054002,46312.0,46302.0,0.00127832]
[1641248906682,0.054002,46312.0,46304.0,0.05400068]
[1641248906889,0.053702,46312.0,46304.0,0.05400068]
[1641248907083,0.053999,46314.0,46304.0,0.05400068]
[1641248907384,0.000923,46315.0,46310.0,0.0012654]
[1641248908584,0.000923,46319.0,46310.0,0.0012654]
[1641248908785,0.044523,46319.0,46310.0,0.0012654]
[1641248909628,0.06157859,46318.0,46310.0,0.0012654]
[1641248910830,0.06157859,46318.0,46313.0,0.0539905]
[1641248911232,0.06157859,46318.0,46310.0,0.0012654]
[1641248911629,0.000923,46317.0,46310.0,0.0012654]
[1641248911830,0.000923,46317.0,46316.0,0.00120874]
[1641248912032,0.00104305,46317.0,46316.0,0.00120874]
[1641248912230,0.00104305,46317.0,46313.0,0.00122201]
[1641248912433,0.06262164,46317.0,46313.0,0.00122201]
[1641248913067,1.09510468,46324.0,46316.0,0.00124385]
[1641248913468,1.00364568,46325.0,46316.0,0.00124385]
[1641248913666,0.38083824,46324.0,46312.0,0.00120803]
[1641248913866,0.0999,46317.0,46311.0,0.00862348]
[1641248914068,0.054,46314.0,46311.0,0.00862348]
[1641248914367,0.0436,46313.0,46311.0,0.00862348]
[1641248915168,0.0436,46320.0,46311.0,0.00862348]
[1641248915568,0.053995,46319.0,46311.0,0.00862348]
[1641248916366,0.0436,46320.0,46311.0,0.00862348]
[1641248918230,0.0976,46320.0,46311.0,0.00862348]
[1641248918633,0.0436,46320.0,46311.0,0.06261897]
[1641248918833,0.0436,46320.0,46311.0,0.00862348]
[1641248919234,0.0976,46320.0,46311.0,0.00862348]
[1641248919838,0.053998,46317.0,46311.0,0.00862348]
[1641248921484,0.05351029,46317.0,46311.0,0.00862348]
[1641248922287,0.05351029,46317.0,46308.0,0.05399884]
[1641248922487,0.05351029,46317.0,46311.0,0.05399682]
[1641248922885,0.05361986,46317.0,46307.0,0.00124244]
[1641248923285,0.85381654,46308.0,46307.0,0.00124244]
[1641248923486,0.85381654,46308.0,46304.0,0.10799108]
[1641248923688,0.054,46315.0,46304.0,0.10799108]
[1641248923888,0.054,46315.0,46309.0,0.05399805]
[1641248924332,0.054,46315.0,46304.0,0.10799108]
[1641248925136,0.004,46315.0,46304.0,0.10799108]
[1641248925737,0.15570857,46320.0,46304.0,0.10799108]
[1641248925935,0.049003,46317.0,46307.0,0.05400098]
[1641248926134,0.092603,46317.0,46307.0,0.05400098]
[1641248926534,0.054,46315.0,46304.0,0.10799108]
[1641248927236,0.004,46315.0,46304.0,0.10799108]
[1641248927638,0.101602,46317.0,46304.0,0.10799108]
[1641248927864,0.05,46316.0,46304.0,0.10799108]
[1641248928065,0.0936,46317.0,46310.0,0.05399717]
[1641248928267,0.0436,46317.0,46307.0,0.10799143]
[1641248928467,0.15117189,46315.0,46307.0,0.10799143]
[1641248928666,0.20117189,46315.0,46307.0,0.10799143]
[1641248929067,0.05,46315.0,46311.0,0.05399574]
[1641248929267,0.20117189,46316.0,46311.0,0.05399574]
[1641248929670,0.15117189,46316.0,46311.0,0.05399574]
[1641248929873,0.0436,46317.0,46311.0,0.05399574]
[1641248931920,0.0436,46317.0,46313.0,0.05399273]
[1641248933521,0.03870046,46317.0,46308.0,0.10120355]
[1641248933722,0.03870046,46317.0,46308.0,0.00120355]
[1641248934721,0.03870046,46317.0,46311.0,0.10798384]
[1641248935374,0.03870046,46317.0,46309.0,0.05399885]
[1641248935676,0.84787484,46312.0,46309.0,0.05399885]
[1641248935873,0.84787484,46312.0,46308.0,0.00120355]
[1641248936075,0.84787484,46312.0,46304.0,0.207999]
[1641248936273,0.84787484,46311.0,46304.0,0.20924879]
[1641248936873,0.84787484,46311.0,46307.0,0.0540004]
[1641248938677,0.84787484,46311.0,46307.0,0.0490004]
[1641248940338,0.84787484,46311.0,46310.0,0.00121419]
[1641248940637,0.13825263,46316.0,46310.0,0.00121419]
[1641248940841,0.18825263,46316.0,46310.0,0.00121419]
[1641248941536,0.16325263,46316.0,46312.0,0.05398977]
[1641248941737,0.13825263,46315.0,46312.0,0.05398977]
[1641248941937,0.13825263,46315.0,46310.0,0.00121419]
[1641248942538,0.053999,46314.0,46310.0,0.00121419]
[1641248942987,0.19225163,46314.0,46310.0,0.00121419]
[1641248943188,0.19225163,46314.0,46310.0,0.05521208]
[1641248943589,0.24225163,46314.0,46310.0,0.05521208]
[1641248943790,0.13825263,46313.0,46310.0,0.05521208]
[1641248943990,0.054001,46312.0,46310.0,0.05521208]
[1641248944188,0.054001,46312.0,46310.0,0.05399789]
[1641248944589,0.19225363,46312.0,46310.0,0.05399789]
[1641248944989,0.19225363,46312.0,46304.0,0.50219804]
[1641248945187,0.19225363,46312.0,46304.0,0.20799804]
[1641248945690,9.749e-05,46313.0,46304.0,0.10799804]
[1641248946290,0.60987326,46305.0,46304.0,0.10799804]
[1641248946493,0.60987326,46305.0,46304.0,0.45873904]
[1641248946937,0.13825263,46311.0,46304.0,0.450741]
[1641248947140,0.05409749,46313.0,46304.0,0.1]
[1641248947737,0.60987279,46305.0,46304.0,0.15399955]
[1641248948037,0.60487279,46305.0,46304.0,0.05399955]
[1641248949236,9.749e-05,46313.0,46307.0,0.05399627]
[1641248949437,9.749e-05,46313.0,46306.0,0.10799254]
[1641248950469,9.749e-05,46313.0,46310.0,0.05399627]
[1641248950872,0.05409649,46313.0,46310.0,0.05399627]
[1641248951972,0.13825263,46312.0,46310.0,0.05399627]
[1641248952172,0.18825263,46312.0,46310.0,0.05399627]
[1641248952872,0.24225163,46312.0,46310.0,0.05399627]
[1641248953274,0.103999,46312.0,46310.0,1.55399627]
[1641248953474,0.053999,46312.0,46310.0,1.55399627]
[1641248953677,0.13825263,46311.0,46310.0,1.55399627]
[1641248954726,0.05,46312.0,46310.0,1.55399627]
[1641248954928,9.749e-05,46313.0,46310.0,1.55399627]
[1641248955330,0.13834885,46311.0,46310.0,1.55399627]
[1641248955727,0.13834885,46311.0,46310.0,1.55484711]
[1641248956327,9.622e-05,46311.0,46310.0,1.55484711]
[1641248956534,0.04369622,46311.0,46310.0,1.50085084]
[1641248956933,0.03369622,46311.0,46310.0,1.50085084]
[1641248957329,0.08369622,46311.0,46310.0,1.50085084]
[1641248957532,0.17194885,46311.0,46310.0,1.50085084]
[1641248957730,0.22194885,46311.0,46310.0,1.50085084]
[1641248958372,0.22194885,46311.0,46310.0,0.83005084]
[1641248958570,0.22194885,46311.0,46295.0,0.41486499]
[1641248958571,0.1,46311.0,46295.0,0.41486499]
[1641248958774,0.1,46311.0,46297.0,0.05401275]
[1641248958775,0.0436,46310.0,46297.0,0.05401275]
[1641248958971,0.00120568,46309.0,46295.0,0.40986499]
[1641248959177,0.053714,46303.0,46295.0,0.40986499]
[1641248959372,0.0436,46302.0,46295.0,0.40986499]
[1641248959571,0.0436,46302.0,46291.0,0.7098]
[1641248959772,0.60994058,46297.0,46295.0,0.05401513]
[1641248959974,0.60994058,46297.0,46291.0,0.7098]
[1641248960171,0.054014,46297.0,46291.0,0.1046]
[1641248960373,0.90793081,46297.0,46291.0,0.1046]
[1641248960572,0.90793081,46297.0,46289.0,0.00126371]
[1641248960873,0.95793081,46297.0,46286.0,0.00865636]
[1641248961074,0.60998839,46293.0,46286.0,0.00865636]
[1641248961275,0.054023,46292.0,46286.0,0.00865636]
[1641248961838,0.104023,46292.0,46286.0,0.00865636]
[1641248962038,0.60998839,46290.0,46286.0,0.00865636]
[1641248962239,0.60998839,46290.0,46282.0,0.41481005]
[1641248962438,0.65998839,46290.0,46285.0,0.0540221]
[1641248962638,0.65998839,46290.0,46282.0,0.41481005]
[1641248962838,0.054025,46288.0,46282.0,0.41481005]
[1641248963041,0.66401339,46288.0,46282.0,0.41481005]
[1641248963240,0.71401339,46288.0,46282.0,0.4136]
[1641248963639,0.71401339,46288.0,46281.0,0.001]
[1641248963640,0.65998839,46288.0,46281.0,0.001]
[1641248963841,0.71401939,46288.0,46281.0,0.001]
[1641248964040,0.05403,46285.0,46281.0,0.001]
[1641248965486,0.158064,46285.0,46281.0,0.001]
[1641248965686,0.108064,46285.0,46281.0,0.001]
[1641248965885,0.054034,46283.0,46281.0,0.001]
[1641248966086,0.0436,46282.0,46281.0,0.001]
[1641248971228,0.37616943,46282.0,46281.0,0.001]
[1641248971827,0.0436,46282.0,46281.0,0.001]
[1641248972527,0.0436,46282.0,46273.0,0.00094422]
[1641248972725,0.054037,46278.0,46273.0,0.00094422]
[1641248972984,0.054037,46278.0,46272.0,0.05403926]
[1641248973984,0.053557,46278.0,46272.0,0.05403926]
[1641248974286,0.008757,46278.0,46272.0,0.05403926]
[1641248974687,0.008757,46278.0,46273.0,0.05403726]
[1641248974889,0.61874539,46278.0,46273.0,0.05403726]
[1641248975086,0.054039,46276.0,46273.0,0.05403726]
[1641248976087,0.050069,46276.0,46273.0,0.05403726]
[1641248976488,0.66402339,46278.0,46273.0,0.05403726]
[1641248976743,0.66402339,46278.0,46275.0,0.05403402]
[1641248977146,0.00013512,46277.0,46275.0,0.05403402]
[1641248977546,0.66367517,46278.0,46275.0,0.05403402]
[1641248978142,0.60964017,46278.0,46275.0,0.05403402]
[1641248978846,0.60916017,46278.0,46275.0,0.05403402]
[1641248982172,0.60916017,46278.0,46275.0,0.04403402]
[1641248985632,0.65916017,46278.0,46275.0,0.04403402]
[1641248986034,0.65867391,46278.0,46275.0,0.04403402]
[1641248986235,0.65867391,46278.0,46275.0,0.03903402]
[1641248987236,0.65867391,46278.0,46276.0,0.02132017]
[1641248987887,0.60867391,46278.0,46276.0,0.02132017]
[1641248988086,0.00012412,46277.0,46276.0,0.02132017]
[1641248990694,0.05416112,46277.0,46276.0,0.02132017]
[1641248991400,0.05416112,46277.0,46272.0,0.02132017]
[1641248992232,0.05266112,46277.0,46274.0,0.05403644]
[1641248992431,0.054036,46282.0,46274.0,0.05403644]
[1641248992432,0.054034,46279.0,46274.0,0.05403644]
[1641248992631,0.054034,46279.0,46272.0,0.12938773]
[1641248993630,0.054034,46279.0,46276.0,0.05403318]
[1641248993832,0.054031,46281.0,46276.0,0.05403318]
[1641248994031,0.054031,46281.0,46277.0,0.02132017]
[1641248996286,0.054039,46279.0,46277.0,0.02132017]
[1641248996686,0.104039,46279.0,46277.0,0.02132017]
[1641248997886,0.054039,46279.0,46277.0,0.02132017]
[1641248998886,0.054035,46279.0,46277.0,0.07535552]
[1641248999145,0.60962792,46282.0,46277.0,0.02132017]
[1641248999839,0.63962792,46282.0,46277.0,0.02132017]
[1641249000138,0.054034,46280.0,46278.0,0.05403411]
[1641249000339,0.58962792,46282.0,46278.0,0.05403411]
[1641249000540,0.58962792,46282.0,46279.0,0.02132017]
[1641249001140,0.054036,46281.0,46279.0,0.02132017]
[1641249001344,0.054034,46280.0,46279.0,0.02132017]
[1641249003588,0.054034,46280.0,46277.0,0.02132017]
[1641249003786,0.108073,46280.0,46277.0,0.02132017]
[1641249003986,0.054039,46279.0,46277.0,0.02132017]
[1641249004485,0.85391681,46284.0,46277.0,0.02132017]
[1641249004887,0.054033,46281.0,46277.0,0.02132017]
[1641249005086,0.054031,46282.0,46279.0,0.05403087]
[1641249005285,0.85391681,46284.0,46277.0,0.12938191]
[1641249005487,0.85391681,46284.0,46277.0,0.02132017]
[1641249005488,0.96198781,46284.0,46277.0,0.02132017]
[1641249005687,0.85391681,46284.0,46277.0,0.02132017]
[1641249006092,0.054031,46283.0,46277.0,0.02132017]
[1641249006288,0.054031,46283.0,46278.0,0.05403287]
[1641249006728,0.054031,46283.0,46277.0,0.12938279]
[1641249007130,0.054031,46283.0,46277.0,0.10806262]
[1641249007329,0.049031,46283.0,46279.0,0.02132017]
[1641249007528,0.044031,46283.0,46279.0,0.07535095]
[1641249008330,0.05403,46284.0,46279.0,0.07535095]
[1641249008528,0.108066,46287.0,46281.0,0.05402859]
[1641249008529,0.054029,46285.0,46281.0,0.05402859]
[1641249009028,0.054029,46285.0,46279.0,0.02132017]
[1641249009429,0.5162861,46284.0,46282.0,0.02939412]
[1641249009831,0.5162861,46284.0,46282.0,0.08342406]
[1641249010031,0.4622551,46283.0,46282.0,0.08342406]
[1641249010692,0.4622551,46283.0,46282.0,0.10474423]
[1641249012194,0.4622551,46283.0,46282.0,0.05071429]
[1641249015439,0.5122551,46283.0,46282.0,0.05071429]
[1641249015640,0.4622551,46283.0,46282.0,0.05071429]
[1641249016941,0.5122551,46283.0,46282.0,0.05071429]
[1641249018075,0.4622551,46283.0,46282.0,0.05071429]
[1641249019178,0.4622551,46284.0,46282.0,0.05071429]
[1641249019676,0.4622551,46284.0,46282.0,0.02132017]
[1641249019876,0.054029,46285.0,46282.0,0.02132017]
[1641249019877,0.4622551,46283.0,46282.0,0.02132017]
[1641249020475,0.4622551,46284.0,46282.0,0.02132017]
[1641249020878,0.4622551,46283.0,46282.0,0.02132017]
[1641249021476,0.5058551,46288.0,46282.0,0.02132017]
[1641249021740,0.5058551,46288.0,46284.0,0.0540266]
[1641249021941,0.5558551,46288.0,46282.0,0.02132017]
[1641249022142,0.054028,46287.0,46281.0,0.02132017]
[1641249022340,0.054028,46285.0,46281.0,0.02132017]
[1641249022539,0.5122551,46288.0,46281.0,0.02132017]
[1641249022740,0.33175511,46287.0,46284.0,0.05402741]
[1641249023139,0.4622551,46288.0,46284.0,0.05402741]
[1641249023343,0.4622551,46286.0,46283.0,0.10804731]
[1641249023941,0.4622551,46287.0,46283.0,0.10804731]
[1641249024141,0.32476482,46286.0,46285.0,0.05402664]
[1641249024445,0.5162821,46287.0,46285.0,0.05402664]
[1641249024741,0.054027,46287.0,46286.0,0.02939412]
[1641249024940,0.35345216,46289.0,46286.0,0.02939412]
[1641249025380,0.4622551,46287.0,46286.0,0.05071429]
[1641249025580,0.79828042,46287.0,46286.0,0.05071429]
[1641249025783,0.85230742,46287.0,46286.0,0.05071429]
[1641249025979,0.39005232,46287.0,46286.0,0.05071429]
[1641249026582,0.85230742,46287.0,46286.0,0.05071429]
[1641249027884,0.90230742,46287.0,46286.0,0.05071429]
[1641249028081,0.90230742,46287.0,46286.0,0.05013627]
[1641249028583,0.85230742,46287.0,46286.0,0.05013627]
[1641249029838,0.85230742,46287.0,46286.0,0.03601723]
[1641249030035,0.85230742,46287.0,46286.0,0.05013627]
[1641249032143,0.78615575,46287.0,46286.0,0.05013627]
[1641249032340,0.4622551,46287.0,46286.0,0.05013627]
[1641249033599,0.4622551,46287.0,46286.0,0.05866927]
[1641249056256,0.054025,46288.0,46286.0,0.03940262]
[1641249056457,0.85397955,46287.0,46286.0,0.03940262]
[1641249056656,0.85397955,46287.0,46286.0,0.06571172]
[1641249056857,0.85397955,46287.0,46286.0,0.09342782]
[1641249058562,0.85397955,46287.0,46286.0,0.10196182]
[1641249058763,0.85397955,46288.0,46286.0,0.10196182]
[1641249058964,0.85397955,46288.0,46286.0,0.11049582]
[1641249059834,0.85397955,46289.0,46286.0,0.11049582]
[1641249061939,0.85397955,46289.0,46286.0,0.08277972]
[1641249062139,0.85397955,46289.0,46288.0,0.0277161]
[1641249062544,0.85397955,46289.0,46288.0,0.03940262]
[1641249062939,0.85397955,46290.0,46288.0,0.03940262]
[1641249063245,0.90397955,46290.0,46288.0,0.03940262]
[1641249063488,0.60960927,46289.0,46288.0,0.03940262]
[1641249064188,0.60971916,46289.0,46288.0,0.03940262]
[1641249068239,0.60971916,46289.0,46288.0,0.54083162]
[1641249068442,0.60971916,46289.0,46288.0,0.64083162]
[1641249069740,0.00010989,46289.0,46288.0,0.64083162]
[1641249070142,0.60971916,46289.0,46288.0,0.64083162]
[1641249070343,0.00010989,46289.0,46288.0,0.64083162]
[1641249073083,0.00010989,46289.0,46288.0,0.54083162]
[1641249073483,0.00010989,46289.0,46288.0,0.54936462]
[1641249074737,0.05383289,46290.0,46288.0,0.54936462]
[1641249074930,0.05353289,46290.0,46288.0,0.52164852]
[1641249075132,0.05353289,46290.0,46289.0,0.01411904]
[1641249075333,0.05353289,46290.0,46289.0,0.0277161]
[1641249076534,0.05353289,46290.0,46289.0,0.03940262]
[1641249080682,0.04853289,46290.0,46289.0,0.03940262]
[1641249082331,0.65814216,46290.0,46289.0,0.03940262]
[1641249083333,0.04853289,46290.0,46289.0,0.03940262]
[1641249085880,0.04862338,46290.0,46289.0,0.03940262]
[1641249091138,0.87321089,46290.0,46289.0,0.03940262]
[1641249098732,0.824678,46290.0,46289.0,0.03940262]
[1641249104298,0.85400911,46290.0,46289.0,0.03940262]
[1641249105354,9.049e-05,46290.0,46289.0,0.3784644]
[1641249105756,9.049e-05,46290.0,46289.0,0.03940262]
[1641249109485,0.85391862,46291.0,46289.0,0.03940262]
[1641249109486,0.80400911,46291.0,46289.0,0.03940262]
[1641249109685,0.80400911,46291.0,46289.0,0.01168652]
[1641249109887,0.80400911,46291.0,46290.0,0.01411904]
[1641249110088,0.80400911,46291.0,46290.0,0.0277161]
[1641249110287,0.80400911,46291.0,46290.0,0.02940262]
[1641249110887,0.054015,46295.0,46290.0,0.02940262]
[1641249111089,0.93552175,46294.0,46290.0,0.02940262]
[1641249111487,0.93552175,46293.0,46290.0,0.02940262]
[1641249112738,0.03697954,46299.0,46290.0,0.02940262]
[1641249113336,0.054019,46292.0,46290.0,0.02940262]
[1641249113535,0.05402,46294.0,46290.0,0.02940262]
[1641249113937,1.0883577,46298.0,46290.0,0.02940262]
[1641249114537,0.9303177,46293.0,46290.0,0.02940262]
[1641249114938,0.054021,46293.0,46290.0,0.01528358]
[1641249115138,0.054021,46293.0,46290.0,0.00168652]
[1641249115340,0.054021,46293.0,46292.0,0.0277161]
[1641249115541,0.049021,46293.0,46292.0,0.0277161]
[1641249116190,0.005021,46293.0,46292.0,0.0277161]
[1641249116792,0.93281503,46293.0,46292.0,0.0277161]
[1641249116988,0.92779403,46293.0,46292.0,0.0177161]
[1641249117190,0.92779403,46293.0,46292.0,0.0080161]
[1641249117789,0.92787757,46293.0,46292.0,0.0080161]
[1641249117992,0.92787757,46293.0,46292.0,0.00970262]
[1641249120436,0.92787757,46293.0,46292.0,0.00168652]
[1641249120637,0.92787757,46293.0,46292.0,0.00970262]
[1641249121036,0.92787757,46293.0,46292.0,0.34191362]
[1641249128345,0.92779403,46293.0,46292.0,0.34191362]
[1641249128542,0.92787757,46293.0,46292.0,0.34191362]
[1641249130742,1.25894151,46293.0,46292.0,0.34191362]
[1641249132185,1.25435607,46293.0,46292.0,0.34191362]
[1641249132785,0.92787757,46293.0,46292.0,0.34191362]
[1641249132985,1.24753183,46293.0,46292.0,0.34191362]
[1641249136049,0.92787757,46293.0,46292.0,0.34191362]
[1641249137449,1.24871059,46293.0,46292.0,0.34191362]
[1641249138498,0.92787757,46293.0,46292.0,0.34191362]
[1641249143045,0.92787757,46293.0,46292.0,0.35044662]
[1641249145885,0.92787757,46293.0,46292.0,0.85183262]
[1641249154480,0.90287757,46293.0,46292.0,0.85183262]
[1641249155983,0.90279403,46293.0,46292.0,0.85183262]
[1641249156183,0.90287757,46293.0,46292.0,0.85183262]
[1641249165335,0.90287757,46293.0,46292.0,0.80183262]
[1641249167138,0.90287757,46293.0,46292.0,0.36966662]
[1641249167837,0.05,46292.0,46291.0,0.05402469]
[1641249168037,0.05,46292.0,46291.0,0.04690496]
[1641249168493,0.10812554,46293.0,46291.0,0.05543896]
[1641249168893,0.05,46292.0,46291.0,0.05543896]
[1641249170592,0.82259881,46292.0,46291.0,0.05543896]
[1641249170792,0.10812554,46293.0,46291.0,0.05543896]
[1641249171293,0.77259881,46292.0,46291.0,0.05543896]
[1641249171990,0.77259881,46292.0,46291.0,0.008534]
[1641249173043,0.82259881,46292.0,46291.0,0.008534]
[1641249174244,0.77259881,46292.0,46291.0,0.008534]
[1641249174944,0.82259881,46292.0,46291.0,0.008534]
[1641249177987,0.82268192,46292.0,46291.0,0.008534]
[1641249178785,0.77268192,46292.0,46290.0,0.008533]
[1641249178985,0.82268192,46292.0,46290.0,0.008533]
[1641249180676,0.054027,46291.0,46290.0,0.008533]
[1641249181281,0.98476292,46292.0,46287.0,0.00079121]
[1641249181577,0.88065281,46291.0,46287.0,0.00079121]
[1641249181777,0.05,46290.0,46287.0,0.00079121]
[1641249181978,0.054027,46289.0,46287.0,0.00079121]
[1641249182179,0.108055,46289.0,46287.0,0.00079121]
[1641249182379,0.108055,46289.0,46287.0,0.33964631]
[1641249182581,0.108055,46289.0,46287.0,0.3488192]
[1641249182582,0.162082,46289.0,46287.0,0.3488192]
[1641249182782,0.162082,46289.0,46287.0,0.00932521]
[1641249183180,0.162082,46289.0,46287.0,0.34711591]
[1641249183384,0.108055,46289.0,46287.0,0.34711591]
[1641249183986,0.162079,46289.0,46287.0,0.34711591]
[1641249184686,0.054027,46289.0,46287.0,0.34711591]
[1641249185487,0.054027,46289.0,46287.0,0.00932521]
[1641249186489,0.108051,46289.0,46287.0,0.00932521]
[1641249188755,8.141e-05,46288.0,46287.0,0.00932521]
[1641249189349,8.141e-05,46288.0,46287.0,0.3687779]
[1641249189550,8.141e-05,46288.0,46287.0,0.3458626]
[1641249189751,8.141e-05,46288.0,46287.0,0.00932521]
[1641249192199,0.10313241,46289.0,46287.0,0.00932521]
[1641249192800,0.95723057,46289.0,46287.0,0.00932521]
[1641249193203,0.95665736,46289.0,46287.0,0.00932521]
[1641249194003,0.85409816,46288.0,46287.0,0.00932521]
[1641249194637,0.84909816,46288.0,46287.0,0.00932521]
[1641249196641,0.84909816,46288.0,46287.0,0.00432521]
[1641249197042,0.84909816,46288.0,46286.0,0.05688543]
[1641249198686,0.84909816,46288.0,46286.0,0.06541843]
[1641249199488,0.86356213,46288.0,46286.0,0.06541843]
[1641249199688,0.00014551,46287.0,46286.0,0.06541843]
[1641249200589,0.00014551,46287.0,46283.0,0.07347321]
[1641249200789,0.05417351,46287.0,46283.0,0.07347321]
[1641249201390,0.05387351,46287.0,46283.0,0.07347321]
[1641249201589,0.05387351,46287.0,46283.0,0.08200621]
[1641249201790,0.05387351,46287.0,46286.0,0.05402722]
[1641249201990,0.05387351,46287.0,46283.0,0.008533]
[1641249202438,0.90808486,46287.0,46283.0,0.008533]
[1641249203233,0.90808486,46287.0,46285.0,0.05402909]
[1641249203834,0.05387351,46287.0,46285.0,0.05402909]
[1641249205237,0.96226735,46288.0,46283.0,0.008533]
[1641249205437,0.96226735,46288.0,46285.0,0.05402523]
[1641249205438,0.90823935,46288.0,46285.0,0.05402523]
[1641249206489,0.054027,46287.0,46285.0,0.05402523]
[1641249206689,0.96226635,46288.0,46285.0,0.05402523]
[1641249207892,1.01629135,46288.0,46285.0,0.05402523]
[1641249208695,0.90823935,46288.0,46285.0,0.05402523]
[1641249209640,0.054028,46288.0,46285.0,0.05402523]
[1641249209841,0.054028,46288.0,46285.0,0.16207351]
[1641249210041,0.054028,46288.0,46285.0,0.21207351]
[1641249210242,0.61010354,46287.0,46285.0,0.21207351]
[1641249210441,0.6102354,46287.0,46285.0,0.21207351]
[1641249210843,0.61010354,46286.0,46285.0,0.21207351]
[1641249211048,0.61010354,46286.0,46285.0,0.16207351]
[1641249211446,0.6102354,46287.0,46285.0,0.16207351]
[1641249212248,0.6102354,46287.0,46285.0,0.21207351]
[1641249212448,0.6102354,46287.0,46285.0,0.22060651]
[1641249212647,0.6102354,46287.0,46285.0,0.22913951]
[1641249212848,0.6102354,46287.0,46285.0,0.17913951]
[1641249213687,0.6102354,46287.0,46286.0,0.0012327]
[1641249214688,0.00013186,46287.0,46286.0,0.0012327]
[1641249215988,0.00013186,46287.0,46286.0,0.3253823]
[1641249216188,0.00013186,46287.0,46286.0,0.0012327]
[1641249217940,0.00013186,46287.0,46286.0,0.32667015]
[1641249219140,0.00013186,46287.0,46286.0,0.37667015]
[1641249219343,0.00013186,46287.0,46286.0,0.32667015]
[1641249219543,0.00013186,46287.0,46286.0,0.47667015]
[1641249219942,0.00013186,46287.0,46286.0,0.32667015]
[1641249221794,0.00013186,46287.0,46286.0,0.47667015]
[1641249224950,0.00013186,46287.0,46286.0,0.82741115]
[1641249226347,9e-05,46292.0,46286.0,0.82741115]
[1641249226648,9e-05,46292.0,46291.0,0.05524357]
[1641249226846,9e-05,46292.0,46291.0,0.73687223]
[1641249227048,9e-05,46292.0,46291.0,0.88687223]
[1641249228490,9e-05,46292.0,46291.0,0.94087623]
[1641249228691,9e-05,46292.0,46291.0,0.61684258]
[1641249228891,0.002,46300.0,46291.0,0.60998857]
[1641249229092,0.002,46300.0,46299.0,0.00123806]
[1641249229492,0.002,46300.0,46299.0,0.10523006]
[1641249230294,0.002,46300.0,46299.0,0.40597106]
[1641249230494,0.002,46300.0,46299.0,0.45597106]
[1641249230697,0.002,46300.0,46299.0,0.88876809]
[1641249231496,0.61010354,46307.0,46299.0,0.88876809]
[1641249231696,0.61010354,46307.0,46304.0,0.0012371]
[1641249231896,0.61010354,46307.0,46304.0,0.05522496]
[1641249232348,0.61010354,46307.0,46306.0,0.00126662]
[1641249232745,0.61010354,46308.0,46306.0,0.00126662]
[1641249233146,0.61010354,46308.0,46306.0,0.16322324]
[1641249233544,0.61010354,46311.0,46306.0,0.16322324]
[1641249233744,0.61010354,46311.0,46307.0,0.33515578]
[1641249233946,0.61010354,46311.0,46310.0,0.00120433]
[1641249234146,0.85421135,46315.0,46310.0,0.05518733]
[1641249234346,0.85421135,46311.0,46310.0,0.05518733]
[1641249234949,0.85421135,46313.0,46310.0,0.05518733]
[1641249237894,0.90421135,46313.0,46310.0,0.05518733]
[1641249238396,0.90421135,46313.0,46311.0,0.3519451]
[1641249238595,0.90421135,46313.0,46312.0,0.33080552]
[1641249238795,0.90421135,46313.0,46312.0,0.68154652]
[1641249238997,0.90421135,46313.0,46312.0,0.350741]
[1641249239399,0.42242025,46313.0,46312.0,1.83073448]
[1641249239640,0.42242025,46313.0,46312.0,1.83196252]
[1641249239939,0.42242025,46313.0,46312.0,1.98196252]
[1641249240340,0.0001,46324.0,46312.0,1.98196252]
[1641249240541,0.0001,46324.0,46317.0,1.146]
[1641249240741,0.0001,46324.0,46319.0,1.146]
[1641249240942,0.0001,46324.0,46320.0,1.496741]
[1641249241342,0.74753559,46324.0,46321.0,0.2]
[1641249241542,0.73803559,46324.0,46322.0,1.199962]
[1641249241747,0.0004,46328.0,46323.0,0.55195774]
[1641249241942,0.0004,46328.0,46323.0,1.69421288]
[1641249242142,0.0004,46328.0,46324.0,1.14225514]
[1641249242342,0.0001,46329.0,46328.0,1.14225514]
[1641249242542,0.0001,46329.0,46328.0,1.49423085]
[1641249242746,0.0001,46329.0,46328.0,1.48923085]
[1641249242943,0.0001,46329.0,46328.0,0.35195582]
[1641249243145,0.0001,46329.0,46328.0,0.00121482]
[1641249243594,0.0001,46329.0,46328.0,0.00124333]
[1641249243996,0.0001,46329.0,46327.0,0.05079511]
[1641249244197,0.049959,46331.0,46327.0,0.04955877]
[1641249244794,0.049959,46331.0,46323.0,0.00866534]
[1641249244795,0.107943,46327.0,46323.0,0.00866534]